[Event "Late-Titled-Tuesday-Blitz-March-26-2024"]
[Site "Chess.com"]
[Date "2024.03.26"]
[Round "7"]
[White "Savagelittlemole"]
[Black "The_Straightforward_Rook"]
[Result "1-0"]
[WhiteElo "2522"]
[BlackElo "2384"]
[TimeControl "180+1"]
[EndTime "15:16:53 PDT"]
[Termination "Savagelittlemole won by resignation"]

1. e4 {[%clk 0:03:00.9]} 1... c6 {[%clk 0:02:51.8]} 2. Nf3 {[%clk 0:02:56.8]}
2... d5 {[%clk 0:02:52]} 3. d3 {[%clk 0:02:56.2]} 3... Nd7 {[%clk 0:02:48.5]} 4.
Nc3 {[%clk 0:02:53.3]} 4... e6 {[%clk 0:02:43.2]} 5. g3 {[%clk 0:02:52.2]} 5...
Bb4 {[%clk 0:02:37.8]} 6. Bd2 {[%clk 0:02:49.3]} 6... Ne7 {[%clk 0:02:36.1]} 7.
Bg2 {[%clk 0:02:49.2]} 7... O-O {[%clk 0:02:34]} 8. O-O {[%clk 0:02:49.1]} 8...
b6 {[%clk 0:02:31.7]} 9. a3 {[%clk 0:02:46.6]} 9... Bxc3 {[%clk 0:02:23]} 10.
Bxc3 {[%clk 0:02:47.5]} 10... Bb7 {[%clk 0:02:23.1]} 11. Re1 {[%clk 0:02:46.7]}
11... c5 {[%clk 0:02:21.7]} 12. e5 {[%clk 0:02:41.1]} 12... d4 {[%clk
0:02:19.1]} 13. Bd2 {[%clk 0:02:41.4]} 13... Qc7 {[%clk 0:02:17.4]} 14. Bf4
{[%clk 0:02:38.3]} 14... h6 {[%clk 0:02:17]} 15. Nd2 {[%clk 0:02:28.3]} 15...
Bxg2 {[%clk 0:02:12.8]} 16. Kxg2 {[%clk 0:02:28.4]} 16... Ng6 {[%clk 0:02:13.7]}
17. Qe2 {[%clk 0:02:17.7]} 17... Qc6+ {[%clk 0:02:00.1]} 18. Qe4 {[%clk
0:02:14.7]} 18... Nxf4+ {[%clk 0:01:58.5]} 19. gxf4 {[%clk 0:02:13.1]} 19...
Qxe4+ {[%clk 0:01:58.2]} 20. dxe4 {[%clk 0:02:12.4]} 20... f5 {[%clk 0:01:49.1]}
21. exf6 {[%clk 0:02:10]} 21... gxf6 {[%clk 0:01:45.8]} 22. Kf3 {[%clk
0:02:02.7]} 22... Kf7 {[%clk 0:01:45.6]} 23. Rg1 {[%clk 0:02:02.2]} 23... Rg8
{[%clk 0:01:45.7]} 24. Nc4 {[%clk 0:02:02.5]} 24... Ke7 {[%clk 0:01:44.1]} 25.
a4 {[%clk 0:02:02]} 25... h5 {[%clk 0:01:26.1]} 26. Rg3 {[%clk 0:01:51.1]} 26...
h4 {[%clk 0:01:23.4]} 27. Rh3 {[%clk 0:01:41.1]} 27... Rh8 {[%clk 0:01:21]} 28.
Rg1 {[%clk 0:01:41]} 28... Kf7 {[%clk 0:01:16.5]} 29. Rg4 {[%clk 0:01:36.2]}
29... a6 {[%clk 0:01:14.8]} 30. Rgxh4 {[%clk 0:01:35.2]} 30... Rxh4 {[%clk
0:01:15.4]} 31. Rxh4 {[%clk 0:01:35]} 31... Kg7 {[%clk 0:01:11]} 32. Nd6 {[%clk
0:01:25.8]} 32... b5 {[%clk 0:01:03]} 33. f5 {[%clk 0:01:19.4]} 33... Ne5+
{[%clk 0:01:00.4]} 34. Ke2 {[%clk 0:01:11.7]} 34... Rd8 {[%clk 0:00:55.9]} 35.
Nb7 {[%clk 0:00:59.2]} 35... Rc8 {[%clk 0:00:53.5]} 36. fxe6 {[%clk 0:00:56.7]}
36... Rc7 {[%clk 0:00:46.6]} 37. Nd6 {[%clk 0:00:54.7]} 37... Re7 {[%clk
0:00:40.2]} 38. Nf5+ {[%clk 0:00:54.5]} 1-0

[Event "Late-Titled-Tuesday-Blitz-March-26-2024"]
[Site "Chess.com"]
[Date "2024.03.26"]
[Round "7"]
[White "HajiyevKanan"]
[Black "Kildepiotr"]
[Result "0-1"]
[WhiteElo "2549"]
[BlackElo "2735"]
[TimeControl "180+1"]
[EndTime "15:16:59 PDT"]
[Termination "Kildepiotr won by checkmate"]

1. d4 {[%clk 0:03:00.9]} 1... c5 {[%clk 0:02:59.7]} 2. e3 {[%clk 0:03:00.9]}
2... Nf6 {[%clk 0:02:59.5]} 3. Nf3 {[%clk 0:03:01.4]} 3... d5 {[%clk 0:02:59.8]}
4. Be2 {[%clk 0:03:02]} 4... Bg4 {[%clk 0:02:59.1]} 5. O-O {[%clk 0:03:02.1]}
5... Nbd7 {[%clk 0:02:59.4]} 6. b3 {[%clk 0:03:00.7]} 6... e6 {[%clk 0:02:59.5]}
7. Bb2 {[%clk 0:03:00.8]} 7... Bd6 {[%clk 0:02:57]} 8. dxc5 {[%clk 0:02:59.3]}
8... Nxc5 {[%clk 0:02:56.8]} 9. c4 {[%clk 0:02:59.7]} 9... dxc4 {[%clk
0:02:47.5]} 10. Bxc4 {[%clk 0:02:54]} 10... O-O {[%clk 0:02:43.2]} 11. Nbd2
{[%clk 0:02:47.9]} 11... Qe7 {[%clk 0:02:34.4]} 12. h3 {[%clk 0:02:48]} 12...
Bh5 {[%clk 0:02:33.4]} 13. Be2 {[%clk 0:02:44.8]} 13... Rfd8 {[%clk 0:02:31.6]}
14. Nd4 {[%clk 0:02:43.4]} 14... Bg6 {[%clk 0:02:27.1]} 15. Nc4 {[%clk
0:02:41.4]} 15... Bc7 {[%clk 0:02:21.1]} 16. f4 {[%clk 0:02:30.9]} 16... e5
{[%clk 0:02:03.4]} 17. f5 {[%clk 0:02:14.6]} 17... exd4 {[%clk 0:02:00.8]} 18.
Bxd4 {[%clk 0:02:15.2]} 18... b5 {[%clk 0:01:52.8]} 19. Nd2 {[%clk 0:02:03.9]}
19... Rxd4 {[%clk 0:01:39.8]} 20. exd4 {[%clk 0:01:56.8]} 20... Qe3+ {[%clk
0:01:39.5]} 21. Kh1 {[%clk 0:01:37]} 21... Nce4 {[%clk 0:01:38.2]} 22. Nxe4
{[%clk 0:01:28.1]} 22... Nxe4 {[%clk 0:01:39.1]} 23. Rf3 {[%clk 0:00:39.6]}
23... Ng3+ {[%clk 0:01:32.3]} 24. Rxg3 {[%clk 0:00:34.5]} 24... Qxg3 {[%clk
0:01:33.2]} 25. Kg1 {[%clk 0:00:16]} 25... Bxf5 {[%clk 0:01:23.2]} 26. Bf3
{[%clk 0:00:13.8]} 26... Re8 {[%clk 0:01:20.4]} 27. Kf1 {[%clk 0:00:06.2]} 27...
Qh2 {[%clk 0:01:05.2]} 28. Rc1 {[%clk 0:00:04.2]} 28... Bg3 {[%clk 0:01:04.4]}
29. Qd2 {[%clk 0:00:03.5]} 29... Qh1# {[%clk 0:01:04.2]} 0-1

[Event "Late-Titled-Tuesday-Blitz-March-26-2024"]
[Site "Chess.com"]
[Date "2024.03.26"]
[Round "7"]
[White "ThinkingSquares"]
[Black "Sanyura"]
[Result "1-0"]
[WhiteElo "2801"]
[BlackElo "2593"]
[TimeControl "180+1"]
[EndTime "15:17:04 PDT"]
[Termination "ThinkingSquares won by resignation"]

1. d4 {[%clk 0:02:59.9]} 1... Nf6 {[%clk 0:02:32]} 2. c4 {[%clk 0:02:59]} 2...
g6 {[%clk 0:02:22.6]} 3. Nc3 {[%clk 0:02:57.3]} 3... d6 {[%clk 0:02:23.1]} 4. e4
{[%clk 0:02:56.8]} 4... Bg7 {[%clk 0:02:23.6]} 5. Nf3 {[%clk 0:02:56.5]} 5...
O-O {[%clk 0:02:24.2]} 6. Be2 {[%clk 0:02:57.2]} 6... Nbd7 {[%clk 0:02:24.4]} 7.
Be3 {[%clk 0:02:56.1]} 7... e5 {[%clk 0:02:24.8]} 8. O-O {[%clk 0:02:54.7]} 8...
h6 {[%clk 0:02:24.3]} 9. d5 {[%clk 0:02:20.4]} 9... Ng4 {[%clk 0:02:17]} 10. Bd2
{[%clk 0:02:20.8]} 10... f5 {[%clk 0:02:09]} 11. g3 {[%clk 0:02:19.4]} 11... f4
{[%clk 0:02:04.8]} 12. Nh4 {[%clk 0:02:17]} 12... fxg3 {[%clk 0:01:49.2]} 13.
fxg3 {[%clk 0:02:08.2]} 13... Rxf1+ {[%clk 0:01:47.5]} 14. Qxf1 {[%clk
0:02:01.3]} 14... Nc5 {[%clk 0:01:28.3]} 15. Nxg6 {[%clk 0:01:55.9]} 15... Nf6
{[%clk 0:01:23.6]} 16. Qg2 {[%clk 0:01:50.8]} 16... a5 {[%clk 0:01:22.6]} 17.
Rf1 {[%clk 0:01:49.5]} 17... Bg4 {[%clk 0:01:14.6]} 18. h3 {[%clk 0:01:44.7]}
18... Bxe2 {[%clk 0:01:13.9]} 19. Qxe2 {[%clk 0:01:45.6]} 19... Qd7 {[%clk
0:01:11.5]} 20. Kg2 {[%clk 0:01:38.6]} 20... c6 {[%clk 0:01:11.2]} 21. Nh4
{[%clk 0:01:35.5]} 21... cxd5 {[%clk 0:01:11.2]} 22. cxd5 {[%clk 0:01:36]} 22...
b5 {[%clk 0:01:11.6]} 23. Bxh6 {[%clk 0:01:25.7]} 23... b4 {[%clk 0:01:05]} 24.
Bxg7 {[%clk 0:01:25.9]} 24... Kxg7 {[%clk 0:00:45.8]} 25. Nf5+ {[%clk
0:01:24.8]} 25... Kg6 {[%clk 0:00:46.2]} 26. Qe3 {[%clk 0:01:06.2]} 26... Rh8
{[%clk 0:00:41.6]} 27. Nh4+ {[%clk 0:01:01.8]} 27... Kf7 {[%clk 0:00:20.2]} 28.
Qg5 {[%clk 0:00:52.1]} 28... Qd8 {[%clk 0:00:20.3]} 29. Qg6+ {[%clk 0:00:50.8]}
1-0

[Event "Late-Titled-Tuesday-Blitz-March-26-2024"]
[Site "Chess.com"]
[Date "2024.03.26"]
[Round "7"]
[White "wild3000"]
[Black "BebeBonito2022"]
[Result "1-0"]
[WhiteElo "2417"]
[BlackElo "2293"]
[TimeControl "180+1"]
[EndTime "15:17:06 PDT"]
[Termination "wild3000 won on time"]

1. d4 {[%clk 0:02:46.7]} 1... Nf6 {[%clk 0:02:59.6]} 2. Nf3 {[%clk 0:02:46.8]}
2... e6 {[%clk 0:02:58]} 3. g3 {[%clk 0:02:45.9]} 3... d5 {[%clk 0:02:57.1]} 4.
Bg2 {[%clk 0:02:46.1]} 4... b5 {[%clk 0:02:57.3]} 5. O-O {[%clk 0:02:47]} 5...
Bb7 {[%clk 0:02:57]} 6. a4 {[%clk 0:02:47.3]} 6... b4 {[%clk 0:02:57]} 7. Nbd2
{[%clk 0:02:43.4]} 7... Nbd7 {[%clk 0:02:56]} 8. c4 {[%clk 0:02:43.5]} 8... c5
{[%clk 0:02:54.8]} 9. cxd5 {[%clk 0:02:38.6]} 9... Bxd5 {[%clk 0:02:40.5]} 10.
Re1 {[%clk 0:02:10.6]} 10... cxd4 {[%clk 0:02:40.2]} 11. Nxd4 {[%clk 0:02:06.4]}
11... Bxg2 {[%clk 0:02:39]} 12. Kxg2 {[%clk 0:02:07.2]} 12... Qb6 {[%clk
0:02:28.8]} 13. N2f3 {[%clk 0:02:02.2]} 13... Be7 {[%clk 0:02:22.8]} 14. Be3
{[%clk 0:01:49.6]} 14... Nd5 {[%clk 0:02:22.1]} 15. Bd2 {[%clk 0:01:45.5]} 15...
O-O {[%clk 0:02:20.6]} 16. e4 {[%clk 0:01:45.4]} 16... N5f6 {[%clk 0:02:03.5]}
17. Be3 {[%clk 0:01:44.7]} 17... Qb7 {[%clk 0:01:53]} 18. Bg5 {[%clk 0:01:34.6]}
18... h6 {[%clk 0:01:48.4]} 19. Bxf6 {[%clk 0:01:30]} 19... Nxf6 {[%clk
0:01:47.1]} 20. Qe2 {[%clk 0:01:28.8]} 20... Rfd8 {[%clk 0:01:45.5]} 21. Rad1
{[%clk 0:01:27.5]} 21... Rac8 {[%clk 0:01:42]} 22. Qb5 {[%clk 0:01:20.5]} 22...
Qxb5 {[%clk 0:01:28.6]} 23. axb5 {[%clk 0:01:21.4]} 23... Bc5 {[%clk 0:00:54.4]}
24. Nc6 {[%clk 0:01:20.4]} 24... Rxd1 {[%clk 0:00:48.4]} 25. Rxd1 {[%clk
0:01:21.3]} 25... Nxe4 {[%clk 0:00:44.3]} 26. Rd7 {[%clk 0:01:18.5]} 26... Nf6
{[%clk 0:00:23.9]} 27. Rb7 {[%clk 0:01:15.7]} 27... a6 {[%clk 0:00:11.2]} 28.
Nfe5 {[%clk 0:01:12.4]} 28... axb5 {[%clk 0:00:11]} 29. Rxb5 {[%clk 0:01:11.9]}
29... Nd5 {[%clk 0:00:07.4]} 30. Rxc5 {[%clk 0:01:10]} 1-0

[Event "Late-Titled-Tuesday-Blitz-March-26-2024"]
[Site "Chess.com"]
[Date "2024.03.26"]
[Round "7"]
[White "crazycheesecake"]
[Black "lluiss"]
[Result "0-1"]
[WhiteElo "1984"]
[BlackElo "2224"]
[TimeControl "180+1"]
[EndTime "15:17:09 PDT"]
[Termination "lluiss won by checkmate"]

1. e4 {[%clk 0:03:00.9]} 1... c5 {[%clk 0:02:56.9]} 2. Nf3 {[%clk 0:02:51.1]}
2... d6 {[%clk 0:02:56.6]} 3. d4 {[%clk 0:02:50.8]} 3... cxd4 {[%clk 0:02:56.6]}
4. Nxd4 {[%clk 0:02:51.7]} 4... Nf6 {[%clk 0:02:56.4]} 5. Nc3 {[%clk 0:02:51.9]}
5... g6 {[%clk 0:02:56.7]} 6. Be3 {[%clk 0:02:51.1]} 6... Bg7 {[%clk 0:02:56.5]}
7. f3 {[%clk 0:02:51.5]} 7... O-O {[%clk 0:02:56.5]} 8. Qd2 {[%clk 0:02:51.4]}
8... Nc6 {[%clk 0:02:56.6]} 9. O-O-O {[%clk 0:02:51.2]} 9... Nxd4 {[%clk
0:02:56.7]} 10. Bxd4 {[%clk 0:02:51.1]} 10... Be6 {[%clk 0:02:57.2]} 11. Kb1
{[%clk 0:02:49.7]} 11... Qc7 {[%clk 0:02:57.3]} 12. a3 {[%clk 0:02:49.4]} 12...
Rfc8 {[%clk 0:02:56.9]} 13. g4 {[%clk 0:02:49.6]} 13... Qa5 {[%clk 0:02:53.3]}
14. h4 {[%clk 0:02:45.1]} 14... Bc4 {[%clk 0:02:53.1]} 15. Bxc4 {[%clk
0:02:40.1]} 15... Rxc4 {[%clk 0:02:52]} 16. h5 {[%clk 0:02:28.6]} 16... Nxe4
{[%clk 0:02:48.9]} 17. Qe2 {[%clk 0:01:08.5]} 17... Rxd4 {[%clk 0:02:02]} 18.
Rxd4 {[%clk 0:00:56.2]} 18... Ng3 {[%clk 0:01:46.5]} 19. Qh2 {[%clk 0:00:29]}
19... Bxd4 {[%clk 0:01:15.6]} 20. Qxg3 {[%clk 0:00:16.3]} 20... Bxc3 {[%clk
0:01:15.6]} 21. hxg6 {[%clk 0:00:12.6]} 21... hxg6 {[%clk 0:01:02.5]} 22. Qh3
{[%clk 0:00:09.9]} 22... Bg7 {[%clk 0:00:56.5]} 23. Qh7+ {[%clk 0:00:09.3]}
23... Kf8 {[%clk 0:00:55.6]} 24. f4 {[%clk 0:00:06.3]} 24... Qb5 {[%clk
0:00:52.4]} 25. b3 {[%clk 0:00:05.5]} 25... Rc8 {[%clk 0:00:50.5]} 26. f5 {[%clk
0:00:04.8]} 26... Qe2 {[%clk 0:00:49.1]} 27. fxg6 {[%clk 0:00:03.8]} 27... Qxc2#
{[%clk 0:00:48.1]} 0-1

[Event "Late-Titled-Tuesday-Blitz-March-26-2024"]
[Site "Chess.com"]
[Date "2024.03.26"]
[Round "7"]
[White "campochess"]
[Black "AlejandroArias"]
[Result "1/2-1/2"]
[WhiteElo "2165"]
[BlackElo "2347"]
[TimeControl "180+1"]
[EndTime "15:17:11 PDT"]
[Termination "Game drawn by repetition"]

1. e4 {[%clk 0:02:47.9]} 1... c5 {[%clk 0:02:59.7]} 2. b4 {[%clk 0:02:47.1]}
2... cxb4 {[%clk 0:02:57.6]} 3. d4 {[%clk 0:02:47.3]} 3... Nf6 {[%clk
0:02:54.5]} 4. Bd3 {[%clk 0:02:44.1]} 4... Nc6 {[%clk 0:02:48.2]} 5. Bb2 {[%clk
0:02:41.6]} 5... d5 {[%clk 0:02:41.9]} 6. e5 {[%clk 0:02:40.8]} 6... Nd7 {[%clk
0:02:36.4]} 7. f4 {[%clk 0:02:39.8]} 7... Nb6 {[%clk 0:02:10.7]} 8. Nd2 {[%clk
0:02:36.7]} 8... Na4 {[%clk 0:01:55.2]} 9. Qc1 {[%clk 0:02:35.7]} 9... Qb6
{[%clk 0:01:49.6]} 10. Ngf3 {[%clk 0:02:34.3]} 10... Bg4 {[%clk 0:01:43.7]} 11.
a3 {[%clk 0:02:32]} 11... e6 {[%clk 0:01:36.5]} 12. axb4 {[%clk 0:02:28.4]}
12... Nxb2 {[%clk 0:01:35.7]} 13. Qxb2 {[%clk 0:02:26.3]} 13... Bxf3 {[%clk
0:01:26.7]} 14. Nxf3 {[%clk 0:02:16.5]} 14... Qxb4+ {[%clk 0:01:26]} 15. Qxb4
{[%clk 0:02:15.1]} 15... Bxb4+ {[%clk 0:01:26.5]} 16. Ke2 {[%clk 0:02:15.1]}
16... O-O {[%clk 0:01:11.1]} 17. Rhb1 {[%clk 0:02:14.5]} 17... a5 {[%clk
0:00:56.2]} 18. Bb5 {[%clk 0:02:09.2]} 18... Rab8 {[%clk 0:00:45.9]} 19. Rb3
{[%clk 0:01:59.7]} 19... Na7 {[%clk 0:00:38.6]} 20. c3 {[%clk 0:01:59.4]} 20...
Bxc3 {[%clk 0:00:31]} 21. Rxc3 {[%clk 0:01:57.9]} 21... Nxb5 {[%clk 0:00:30.7]}
22. Rc5 {[%clk 0:01:57.7]} 22... Na7 {[%clk 0:00:27]} 23. Rcxa5 {[%clk
0:01:57.5]} 23... Nc6 {[%clk 0:00:25.3]} 24. Rb5 {[%clk 0:01:57.2]} 24... h5
{[%clk 0:00:18.6]} 25. Rab1 {[%clk 0:01:55]} 25... Kh7 {[%clk 0:00:14.7]} 26.
Rxb7 {[%clk 0:01:53.6]} 26... Kg6 {[%clk 0:00:11.6]} 27. g3 {[%clk 0:01:38.8]}
27... Kf5 {[%clk 0:00:06.3]} 28. Ke3 {[%clk 0:01:38.7]} 28... Kg4 {[%clk
0:00:03.6]} 29. Ng5 {[%clk 0:01:35.6]} 29... Rxb7 {[%clk 0:00:01.4]} 30. Rxb7
{[%clk 0:01:34.1]} 30... Rb8 {[%clk 0:00:01.8]} 31. Rxb8 {[%clk 0:01:33.4]}
31... Nxb8 {[%clk 0:00:01.6]} 32. Nxf7 {[%clk 0:01:31.7]} 32... Nc6 {[%clk
0:00:01.9]} 33. Ng5 {[%clk 0:01:24.9]} 33... Kf5 {[%clk 0:00:02.8]} 34. h3
{[%clk 0:01:23.9]} 34... Nb4 {[%clk 0:00:02.8]} 35. Nf7 {[%clk 0:01:19]} 35...
Nc2+ {[%clk 0:00:02.7]} 36. Kd3 {[%clk 0:01:19.2]} 36... Nb4+ {[%clk 0:00:02.8]}
37. Ke3 {[%clk 0:01:18.9]} 37... Nc2+ {[%clk 0:00:02.8]} 38. Kd3 {[%clk
0:01:19]} 38... Nb4+ {[%clk 0:00:02.9]} 39. Ke3 {[%clk 0:01:19]} 1/2-1/2

[Event "Late-Titled-Tuesday-Blitz-March-26-2024"]
[Site "Chess.com"]
[Date "2024.03.26"]
[Round "7"]
[White "Andrey_Klymchuk"]
[Black "ckgchess"]
[Result "0-1"]
[WhiteElo "2713"]
[BlackElo "2936"]
[TimeControl "180+1"]
[EndTime "15:17:12 PDT"]
[Termination "ckgchess won by checkmate"]

1. e4 {[%clk 0:03:00.9]} 1... c5 {[%clk 0:03:00.1]} 2. Nf3 {[%clk 0:03:00.5]}
2... d6 {[%clk 0:03:00.8]} 3. d4 {[%clk 0:03:00.5]} 3... cxd4 {[%clk 0:03:01.7]}
4. Nxd4 {[%clk 0:03:01]} 4... Nf6 {[%clk 0:03:02.3]} 5. f3 {[%clk 0:03:00.1]}
5... e5 {[%clk 0:03:00.4]} 6. Bb5+ {[%clk 0:03:00.1]} 6... Nbd7 {[%clk
0:02:58.8]} 7. Nf5 {[%clk 0:03:00.3]} 7... d5 {[%clk 0:02:58.9]} 8. exd5 {[%clk
0:03:01.2]} 8... a6 {[%clk 0:02:59.2]} 9. Ba4 {[%clk 0:03:01.6]} 9... b5 {[%clk
0:02:57.2]} 10. Bb3 {[%clk 0:03:02]} 10... Nc5 {[%clk 0:02:57.1]} 11. Ne3 {[%clk
0:03:02.4]} 11... Bd6 {[%clk 0:02:49.3]} 12. Nc3 {[%clk 0:03:00.4]} 12... e4
{[%clk 0:02:46.4]} 13. O-O {[%clk 0:02:52.6]} 13... O-O {[%clk 0:02:40.9]} 14.
fxe4 {[%clk 0:02:50]} 14... Nfxe4 {[%clk 0:02:38.5]} 15. Qh5 {[%clk 0:02:26.5]}
15... g6 {[%clk 0:02:25.5]} 16. Qh6 {[%clk 0:02:12]} 16... Nxc3 {[%clk
0:02:22.9]} 17. bxc3 {[%clk 0:02:11.9]} 17... Re8 {[%clk 0:02:23.7]} 18. c4
{[%clk 0:02:07.2]} 18... Bf8 {[%clk 0:02:18.8]} 19. Qf4 {[%clk 0:02:06.7]} 19...
Ra7 {[%clk 0:02:10.7]} 20. Bb2 {[%clk 0:02:03.6]} 20... Re4 {[%clk 0:01:50.8]}
21. Qf3 {[%clk 0:01:44.3]} 21... Qb6 {[%clk 0:01:44.1]} 22. Rae1 {[%clk
0:01:36.2]} 22... bxc4 {[%clk 0:01:20]} 23. Nxc4 {[%clk 0:01:19.5]} 23... Rxc4
{[%clk 0:01:20]} 24. Kh1 {[%clk 0:01:03.2]} 24... Nxb3 {[%clk 0:00:51.4]} 25.
cxb3 {[%clk 0:01:01.9]} 25... Rc2 {[%clk 0:00:51.6]} 26. Bf6 {[%clk 0:00:46.8]}
26... Bf5 {[%clk 0:00:50.4]} 27. Re8 {[%clk 0:00:45.6]} 27... Qxf6 {[%clk
0:00:49.7]} 28. d6 {[%clk 0:00:26.2]} 28... Qxd6 {[%clk 0:00:46.1]} 29. Rd1
{[%clk 0:00:20.5]} 29... Qc6 {[%clk 0:00:40.2]} 30. Qe3 {[%clk 0:00:19]} 30...
Qxg2# {[%clk 0:00:38.7]} 0-1

[Event "Late-Titled-Tuesday-Blitz-March-26-2024"]
[Site "Chess.com"]
[Date "2024.03.26"]
[Round "7"]
[White "banane_verte"]
[Black "Chempiblinka"]
[Result "1-0"]
[WhiteElo "2533"]
[BlackElo "2384"]
[TimeControl "180+1"]
[EndTime "15:17:17 PDT"]
[Termination "banane_verte won by resignation"]

1. d4 {[%clk 0:02:44.3]} 1... Nf6 {[%clk 0:02:59.6]} 2. c4 {[%clk 0:02:44]} 2...
g6 {[%clk 0:03:00.2]} 3. Nc3 {[%clk 0:02:37.3]} 3... Bg7 {[%clk 0:03:00.7]} 4.
e4 {[%clk 0:02:37.3]} 4... d6 {[%clk 0:03:01.3]} 5. Nf3 {[%clk 0:02:38.2]} 5...
O-O {[%clk 0:03:01.2]} 6. Be2 {[%clk 0:02:38.4]} 6... Bg4 {[%clk 0:03:01.1]} 7.
O-O {[%clk 0:02:34.8]} 7... Nfd7 {[%clk 0:03:00.9]} 8. Be3 {[%clk 0:02:32.1]}
8... Nc6 {[%clk 0:02:55]} 9. d5 {[%clk 0:02:29.2]} 9... Bxf3 {[%clk 0:02:45]}
10. Bxf3 {[%clk 0:02:30.1]} 10... Na5 {[%clk 0:02:44.5]} 11. Be2 {[%clk
0:02:26.6]} 11... Bxc3 {[%clk 0:02:43.6]} 12. bxc3 {[%clk 0:02:26.7]} 12... c5
{[%clk 0:02:02.1]} 13. f4 {[%clk 0:02:19.4]} 13... b6 {[%clk 0:02:00.2]} 14. e5
{[%clk 0:02:15.5]} 14... dxe5 {[%clk 0:01:58.4]} 15. f5 {[%clk 0:02:15.1]} 15...
Nb7 {[%clk 0:01:51.2]} 16. Bh6 {[%clk 0:02:11.9]} 16... Re8 {[%clk 0:01:49.4]}
17. Bg4 {[%clk 0:02:05.6]} 17... Nd6 {[%clk 0:01:47.4]} 18. fxg6 {[%clk
0:02:03.8]} 18... hxg6 {[%clk 0:01:48]} 19. Qf3 {[%clk 0:01:56.7]} 19... Nf6
{[%clk 0:01:30.8]} 20. Rae1 {[%clk 0:01:45.5]} 20... e4 {[%clk 0:01:25.4]} 21.
Qg3 {[%clk 0:01:43.4]} 21... Nxc4 {[%clk 0:01:21.2]} 22. Be6 {[%clk 0:01:42.8]}
22... Ne5 {[%clk 0:00:46.4]} 23. Qxe5 {[%clk 0:01:35.2]} 23... fxe6 {[%clk
0:00:46]} 24. Qxe6+ {[%clk 0:01:29.3]} 24... Kh8 {[%clk 0:00:43]} 25. Rf4 {[%clk
0:01:10.4]} 25... Qxd5 {[%clk 0:00:25]} 26. Rxf6 {[%clk 0:01:07.8]} 26... Qxe6
{[%clk 0:00:21.2]} 27. Rxe6 {[%clk 0:01:08.7]} 27... Rad8 {[%clk 0:00:18.4]} 28.
R1xe4 {[%clk 0:01:07]} 28... Rd1+ {[%clk 0:00:18.1]} 29. Re1 {[%clk 0:01:06.6]}
29... Kh7 {[%clk 0:00:18]} 30. Rxd1 {[%clk 0:01:06.4]} 30... Kxh6 {[%clk
0:00:17.8]} 31. Rd7 {[%clk 0:01:07.3]} 31... Rf8 {[%clk 0:00:16.2]} 32. Rdxe7
{[%clk 0:01:08.2]} 32... Rf4 {[%clk 0:00:15.9]} 33. Rd7 {[%clk 0:01:07.1]} 33...
Ra4 {[%clk 0:00:15]} 34. Rdd6 {[%clk 0:01:08]} 34... Rxa2 {[%clk 0:00:15.1]} 35.
Rxg6+ {[%clk 0:01:08.9]} 1-0

[Event "Late-Titled-Tuesday-Blitz-March-26-2024"]
[Site "Chess.com"]
[Date "2024.03.26"]
[Round "7"]
[White "katharinareinecke"]
[Black "martinmena"]
[Result "1-0"]
[WhiteElo "2005"]
[BlackElo "2213"]
[TimeControl "180+1"]
[EndTime "15:17:19 PDT"]
[Termination "katharinareinecke won by resignation"]

1. d4 {[%clk 0:03:00.9]} 1... d5 {[%clk 0:02:56.9]} 2. c4 {[%clk 0:02:59.3]}
2... e6 {[%clk 0:02:56.4]} 3. Nf3 {[%clk 0:02:58.5]} 3... Nf6 {[%clk 0:02:55.6]}
4. g3 {[%clk 0:02:58.2]} 4... Be7 {[%clk 0:02:54]} 5. Bg2 {[%clk 0:02:57.8]}
5... O-O {[%clk 0:02:49.4]} 6. O-O {[%clk 0:02:57]} 6... dxc4 {[%clk 0:02:49.2]}
7. Ne5 {[%clk 0:02:52.5]} 7... Nc6 {[%clk 0:02:36.3]} 8. Nxc6 {[%clk 0:02:51.6]}
8... bxc6 {[%clk 0:02:37.1]} 9. Na3 {[%clk 0:02:52.1]} 9... Rb8 {[%clk
0:02:31.2]} 10. Nxc4 {[%clk 0:02:49.4]} 10... c5 {[%clk 0:02:26.4]} 11. dxc5
{[%clk 0:02:24.9]} 11... Bxc5 {[%clk 0:02:20.9]} 12. e3 {[%clk 0:02:24.8]} 12...
Bb7 {[%clk 0:02:17.6]} 13. Bxb7 {[%clk 0:02:20.5]} 13... Rxb7 {[%clk 0:02:18.1]}
14. b3 {[%clk 0:02:08.8]} 14... Ne4 {[%clk 0:01:40]} 15. Bb2 {[%clk 0:02:00.9]}
15... Nd6 {[%clk 0:01:02.3]} 16. Qg4 {[%clk 0:01:55.2]} 16... g6 {[%clk
0:00:51.3]} 17. Rfd1 {[%clk 0:01:51.8]} 17... Qe7 {[%clk 0:00:42.2]} 18. Ne5
{[%clk 0:01:45.5]} 18... Nf5 {[%clk 0:00:29.5]} 19. Qh3 {[%clk 0:01:41.4]} 19...
Qg5 {[%clk 0:00:16.2]} 20. Ng4 {[%clk 0:01:38.3]} 20... f6 {[%clk 0:00:05.9]}
21. f4 {[%clk 0:01:28.1]} 21... Qh5 {[%clk 0:00:02.1]} 22. Qxh5 {[%clk
0:01:16.1]} 22... gxh5 {[%clk 0:00:03]} 23. Nxf6+ {[%clk 0:01:16.1]} 23... Rxf6
{[%clk 0:00:03.5]} 24. Bxf6 {[%clk 0:01:15.2]} 24... Nxe3 {[%clk 0:00:04.3]} 25.
Bd4 {[%clk 0:01:04.6]} 25... Nc2 {[%clk 0:00:03.5]} 26. Bxc5 {[%clk 0:01:02.8]}
26... Nxa1 {[%clk 0:00:03]} 27. Rxa1 {[%clk 0:01:02.4]} 27... Rb5 {[%clk
0:00:03.5]} 28. Rc1 {[%clk 0:01:01.2]} 28... c6 {[%clk 0:00:02.4]} 29. b4 {[%clk
0:00:59.5]} 29... Ra5 {[%clk 0:00:02.8]} 30. bxa5 {[%clk 0:00:59.1]} 1-0